bitfinex/quotes_BTCUSD_20250602
["timestamp","ask_amount","ask_price","bid_price","bid_amount"]
[1748880627779,0.24722761,104380.0,104370.0,0.21083636]
[1748880627992,0.23764797,104380.0,104370.0,0.21083636]
[1748880628416,0.04604021,104380.0,104370.0,0.22041701]
[1748880629094,0.03645956,104380.0,104370.0,0.22041701]
[1748880629306,0.04603957,104380.0,104370.0,0.22041701]
[1748880629509,0.24722734,104380.0,104370.0,0.21083636]
[1748880629917,0.2376477,104380.0,104370.0,0.21083636]
[1748880631095,0.2376477,104380.0,104370.0,0.22041719]
[1748880631484,0.2376477,104380.0,104370.0,0.22999793]
[1748880631743,0.2376477,104380.0,104370.0,0.21083654]
[1748880631947,0.2376477,104380.0,104370.0,0.22041737]
[1748880632771,0.25680835,104380.0,104370.0,0.22999811]
[1748880633189,0.24722843,104380.0,104370.0,0.21083654]
[1748880633394,0.23764842,104380.0,104370.0,0.21083654]
[1748880633605,0.23764842,104380.0,104370.0,0.22041747]
[1748880633824,0.03646047,104380.0,104370.0,0.23957895]
[1748880634041,0.23764842,104380.0,104370.0,0.23957895]
[1748880634248,0.23764842,104380.0,104370.0,0.2299983]
[1748880634869,0.23764842,104380.0,104370.0,0.23957904]
[1748880635077,0.23764842,104380.0,104370.0,0.23957849]
[1748880635284,0.03646047,104380.0,104370.0,0.23957849]
[1748880635492,0.03646002,104380.0,104370.0,0.23957849]
[1748880635698,0.05561985,104380.0,104370.0,0.23957849]
[1748880637264,0.06520013,104380.0,104370.0,0.23957849]
[1748880638288,0.04603966,104380.0,104370.0,0.23957849]
[1748880638523,0.03931985,104380.0,104370.0,0.23957849]
[1748880639179,0.22776814,104380.0,104370.0,4.829e-05]
[1748880639606,0.24306814,104380.0,104370.0,4.829e-05]
[1748880640087,0.29278786,104380.0,104370.0,4.829e-05]
[1748880640329,0.23348795,104380.0,104370.0,0.20125552]
[1748880640572,0.27390758,104380.0,104370.0,0.20125552]
[1748880640793,0.28348795,104380.0,104370.0,0.22041765]
[1748880641005,0.29306805,104380.0,104370.0,0.22041783]
[1748880641828,0.35914106,104380.0,104370.0,0.22041783]
[1748880642236,0.35914106,104380.0,104370.0,0.22999885]
[1748880642604,0.29306805,104380.0,104370.0,0.22999885]
[1748880642824,0.29306805,104380.0,104370.0,0.23957978]
[1748880643028,0.29306805,104380.0,104370.0,0.22999885]
[1748880644446,0.29306805,104380.0,104370.0,4.829e-05]
[1748880644447,0.28348795,104380.0,104370.0,4.829e-05]
[1748880644652,0.28348795,104380.0,104370.0,0.19167423]
[1748880644860,0.36411286,104380.0,104370.0,4.829e-05]
[1748880645072,0.44790656,104380.0,104370.0,4.829e-05]
[1748880645508,0.44790656,104380.0,104350.0,0.2012454]
[1748880645509,0.22997148,104360.0,104350.0,0.2012454]
[1748880645712,0.2203901,104360.0,104350.0,0.2012454]
[1748880646990,0.2203901,104360.0,104350.0,0.2022454]
[1748880647198,0.2203901,104360.0,104350.0,0.2052454]
[1748880647408,0.21080844,104360.0,104350.0,0.2052454]
[1748880648529,0.21080844,104360.0,104350.0,0.2022454]
[1748880648939,0.21080844,104360.0,104350.0,0.2042454]
[1748880649143,0.30071554,104360.0,104350.0,0.2042454]
[1748880649647,0.28421554,104360.0,104350.0,0.2042454]
[1748880649958,0.21080844,104360.0,104350.0,0.21382807]
[1748880650430,0.21080844,104360.0,104350.0,0.21382825]
[1748880650639,0.01916304,104360.0,104350.0,0.2329935]
[1748880650848,0.56131122,104370.0,104360.0,0.2203901]
[1748880651061,0.56131122,104370.0,104360.0,0.22039019]
[1748880651748,0.54214928,104370.0,104360.0,0.20122651]
[1748880651928,0.54214928,104370.0,104360.0,0.21080863]
[1748880652360,0.54214928,104370.0,104360.0,0.22039056]
[1748880653377,0.24182928,104370.0,104360.0,0.22039056]
[1748880654675,0.24182928,104370.0,104360.0,0.21080863]
[1748880654901,0.54210928,104370.0,104360.0,0.22039066]
[1748880655566,0.21080863,104360.0,104350.0,0.20124562]
[1748880655823,0.0095834,104340.0,104330.0,0.6448738]
[1748880656067,0.21082875,104350.0,104340.0,0.21094126]
[1748880656494,0.21082875,104350.0,104340.0,0.20135767]
[1748880656698,0.25418606,104350.0,104340.0,0.21094135]
[1748880656915,0.25418606,104350.0,104340.0,0.22052494]
[1748880657131,0.26080311,104350.0,104340.0,0.19177381]
[1748880657347,0.26080311,104350.0,104340.0,9.277e-05]
[1748880657348,0.28976634,104350.0,104340.0,9.277e-05]
[1748880657559,0.32070719,104350.0,104340.0,9.277e-05]
[1748880658409,0.34948719,104350.0,104340.0,0.00209277]
[1748880658594,0.34948719,104350.0,104340.0,0.00309277]
[1748880658743,0.34948719,104350.0,104340.0,0.00109277]
[1748880658964,0.34948719,104350.0,104340.0,9.277e-05]
[1748880659188,0.14824139,104350.0,104340.0,9.277e-05]
[1748880659365,0.34948719,104350.0,104340.0,9.277e-05]
[1748880659767,0.64976719,104350.0,104340.0,9.277e-05]
[1748880660374,0.98976719,104350.0,104340.0,9.277e-05]
[1748880666148,1.03976719,104350.0,104340.0,9.277e-05]
[1748880666332,0.98976719,104350.0,104340.0,9.277e-05]
[1748880667312,0.90122988,104350.0,104340.0,9.277e-05]
[1748880669331,0.201265,104340.0,104330.0,0.2513541]
[1748880669554,0.21084877,104340.0,104330.0,0.25183751]
[1748880669764,0.21084877,104340.0,104330.0,0.27040838]
[1748880669972,0.21084877,104340.0,104330.0,0.26142229]
[1748880670154,0.21084877,104340.0,104330.0,0.27100698]
[1748880670598,0.21084877,104340.0,104330.0,0.26142229]
[1748880671014,0.21084877,104340.0,104330.0,0.26242229]
[1748880671234,0.21084877,104340.0,104330.0,0.27140834]
[1748880671444,0.21084877,104340.0,104330.0,0.26242229]
[1748880671861,0.201265,104340.0,104330.0,0.26442229]
[1748880672296,0.201265,104340.0,104330.0,0.26382367]
[1748880672513,0.29377622,104340.0,104330.0,0.25483751]
[1748880672721,0.29377622,104340.0,104330.0,0.2638236]
[1748880672900,0.29377622,104340.0,104330.0,0.25483751]
[1748880673137,0.29377622,104340.0,104330.0,0.26442229]
[1748880673329,0.29377622,104340.0,104330.0,0.25483751]
[1748880673542,0.28419226,104340.0,104330.0,0.02836925]
[1748880674400,0.28419226,104340.0,104330.0,0.03735546]
[1748880674599,0.28419226,104340.0,104330.0,0.02836925]
[1748880674783,0.28419226,104340.0,104330.0,0.03735546]
[1748880674987,0.28419226,104340.0,104330.0,0.02836925]
[1748880675199,0.28419226,104340.0,104330.0,0.03735547]
[1748880675619,0.28419226,104340.0,104330.0,0.26332466]
[1748880675620,0.19168104,104340.0,104330.0,0.26332466]
[1748880675826,0.24036437,104340.0,104330.0,0.2639231]
[1748880676040,0.24994814,104340.0,104330.0,0.26392328]
[1748880676249,0.03909928,104340.0,104330.0,0.78213248]
[1748880676461,0.03909928,104340.0,104330.0,0.7731465]
[1748880676659,0.04812811,104350.0,104340.0,0.25153208]
[1748880676879,0.07306364,104350.0,104340.0,0.25153208]
[1748880677727,0.0826464,104350.0,104340.0,0.25153208]
[1748880677934,0.07306364,104350.0,104340.0,0.25153208]
[1748880679151,0.04812811,104350.0,104340.0,0.25153208]
[1748880679796,0.08674681,104350.0,104340.0,0.25153208]
[1748880680004,0.01916488,104350.0,104340.0,0.25153208]
[1748880680207,0.0095823,104350.0,104340.0,0.25153208]
[1748880680416,0.01916479,104350.0,104340.0,0.25153208]
[1748880680908,0.0095823,104350.0,104340.0,0.25153208]
[1748880681120,0.59897967,104370.0,104360.0,0.21080808]
[1748880681343,0.94098555,104370.0,104360.0,0.23549038]
[1748880681552,0.92182342,104370.0,104360.0,0.1916443]
[1748880681761,0.01916359,104360.0,104350.0,0.24182755]
[1748880682029,0.31290114,104360.0,104350.0,0.22592856]
[1748880682257,0.22038992,104360.0,104350.0,0.26029381]
[1748880682462,0.23955425,104360.0,104350.0,0.26029399]
[1748880682672,0.22997259,104360.0,104350.0,0.24509399]
[1748880682879,0.21632651,104360.0,104340.0,0.2422484]
[1748880683084,0.01916543,104350.0,104340.0,0.26141557]
[1748880683273,0.22041151,104350.0,104340.0,0.2326649]
[1748880683519,0.24966079,104350.0,104340.0,0.24224867]
[1748880683732,0.22999464,104350.0,104340.0,0.25183226]
[1748880683943,0.22999464,104350.0,104340.0,0.22704867]
[1748880684155,0.28702707,104350.0,104340.0,0.23663235]
[1748880684365,0.28702707,104350.0,104340.0,0.24621575]
[1748880684590,0.0191658,104350.0,104340.0,0.24621575]
[1748880684798,0.22041151,104350.0,104340.0,0.26191575]
[1748880685021,0.22999464,104350.0,104340.0,0.26191575]
[1748880686701,0.22999464,104350.0,104340.0,0.25233235]
[1748880686904,0.22041179,104350.0,104340.0,0.22704867]
[1748880687107,0.22041179,104350.0,104340.0,0.23663235]
[1748880687565,0.30787326,104350.0,104340.0,0.2174649]
[1748880687782,0.30787326,104350.0,104340.0,0.22704849]
[1748880687964,0.30787326,104350.0,104340.0,0.23663199]
[1748880688468,0.30787326,104350.0,104340.0,0.22704867]
[1748880688933,0.30787326,104350.0,104340.0,0.23663226]
[1748880689326,0.30787326,104350.0,104340.0,0.217465]
[1748880689456,0.29829031,104350.0,104340.0,0.20788104]
[1748880689659,0.29829031,104350.0,104340.0,0.21746509]
[1748880689882,0.201265,104340.0,104330.0,0.25193813]
[1748880690091,0.25018833,104340.0,104330.0,0.25193813]
[1748880690291,0.25977238,104340.0,104330.0,0.27110761]
[1748880690766,0.26935606,104340.0,104330.0,0.28069202]
[1748880691019,0.22043273,104340.0,104330.0,0.28069202]
[1748880691500,0.22043273,104340.0,104330.0,0.2635231]
[1748880691767,0.21084905,104340.0,104330.0,0.01146925]
[1748880692020,0.21084905,104340.0,104330.0,0.01246925]
[1748880692312,0.29628596,104340.0,104330.0,0.20416866]
[1748880692537,0.31419277,104340.0,104330.0,0.01246925]
[1748880692783,0.4080515,104340.0,104330.0,0.01246925]
[1748880693022,0.4080515,104340.0,104330.0,0.00348341]
[1748880693440,0.4580515,104340.0,104330.0,0.00348341]
[1748880694095,0.4080515,104340.0,104330.0,0.00348341]
[1748880694298,0.42595626,104340.0,104330.0,0.00348341]
[1748880694502,0.4080515,104340.0,104330.0,0.00148341]
[1748880694964,0.42595622,104340.0,104330.0,0.00148341]
[1748880695183,0.4080515,104340.0,104330.0,0.00148341]
[1748880695381,0.42595396,104340.0,104330.0,0.00048341]
[1748880695618,0.40804939,104340.0,104330.0,0.00048341]
[1748880695947,0.4080443,104340.0,104330.0,0.00048341]
[1748880696463,0.5038986,104340.0,104330.0,0.00048341]
[1748880696589,0.20128419,104330.0,104320.0,0.0154]
[1748880696796,0.20128419,104330.0,104320.0,0.20711779]
[1748880696992,0.20128419,104330.0,104320.0,0.21670367]
[1748880697191,0.2191884,104330.0,104320.0,0.21670367]
[1748880697398,0.20128419,104330.0,104320.0,0.21670367]
[1748880697600,0.20128419,104330.0,104320.0,0.22569091]
[1748880697802,0.21918798,104330.0,104320.0,0.22769092]
[1748880698020,0.20128419,104330.0,104320.0,0.21870367]
[1748880698237,0.21918849,104330.0,104320.0,0.23727671]
[1748880698427,0.20128419,104330.0,104320.0,0.0174]
[1748880698638,0.20477123,104330.0,104320.0,0.0174]
[1748880698845,0.20477123,104330.0,104320.0,0.002]
[1748880699260,0.21931208,104330.0,104320.0,0.003]
[1748880699467,0.23721658,104330.0,104320.0,0.19471779]
[1748880699663,0.22889686,104330.0,104320.0,0.2132908]
[1748880699888,0.24680117,104330.0,104320.0,0.2297908]
[1748880700103,0.24680117,104330.0,104320.0,0.22979098]
[1748880700306,0.22889686,104330.0,104320.0,0.22979089]
[1748880700512,0.24680369,104330.0,104320.0,0.22080367]
[1748880700715,0.21931208,104330.0,104320.0,0.22080367]
[1748880700889,0.22889686,104330.0,104320.0,0.2399748]
[1748880701090,0.23499452,104330.0,104320.0,0.2399748]
[1748880701321,0.03422051,104340.0,104330.0,0.23675311]
[1748880701527,0.11317714,104340.0,104330.0,0.27052446]
[1748880701720,0.23049919,104340.0,104330.0,0.25195311]
[1748880701920,0.24504004,104340.0,104330.0,0.2423687]
[1748880702152,0.26295079,104340.0,104330.0,0.2423687]
[1748880702353,0.23545664,104340.0,104330.0,0.23278419]
[1748880702701,0.22587305,104340.0,104330.0,0.23278419]
[1748880702908,0.26628919,104340.0,104330.0,0.23278419]
[1748880703331,0.33013389,104340.0,104330.0,0.25195329]
[1748880703539,0.06839471,104340.0,104330.0,0.25195329]
[1748880703785,0.04714855,104340.0,104330.0,0.26153761]
[1748880703985,0.04714941,104340.0,104330.0,0.26153761]
[1748880704191,0.0471505,104340.0,104330.0,0.27052359]
[1748880704398,0.02923401,104340.0,104330.0,0.27052358]
[1748880704606,0.04715124,104340.0,104330.0,0.26153761]
[1748880704814,0.04715305,104340.0,104330.0,0.27052359]
[1748880705019,0.02923401,104340.0,104330.0,0.26153761]
[1748880705221,0.03881723,104340.0,104330.0,0.26153761]
[1748880705421,0.03881723,104340.0,104330.0,0.27052359]
[1748880705627,0.03881723,104340.0,104330.0,0.26153761]
[1748880705829,0.03881723,104340.0,104330.0,0.27052359]
[1748880706249,0.03881723,104340.0,104330.0,0.26153761]
[1748880706464,0.05673796,104340.0,104330.0,0.26153761]
[1748880706666,0.056738,104340.0,104330.0,0.26153761]
[1748880706870,0.05673809,104340.0,104330.0,0.27052357]
[1748880707078,0.03881723,104340.0,104330.0,0.26153761]
[1748880707282,0.05673845,104340.0,104330.0,0.27052358]
[1748880707537,0.05673842,104340.0,104330.0,0.26153761]
[1748880707728,0.048401,104340.0,104330.0,0.26153761]
[1748880707934,0.06632228,104340.0,104330.0,0.26153761]
[1748880708150,0.06632227,104340.0,104330.0,0.26153761]
[1748880708352,0.048401,104340.0,104330.0,0.26153761]
[1748880708534,0.098401,104340.0,104330.0,0.26153761]
[1748880708809,0.048401,104340.0,104330.0,0.26153761]
[1748880709033,0.048401,104340.0,104330.0,0.27052358]
[1748880709262,0.24008278,104340.0,104330.0,0.27052358]
[1748880709486,0.06632325,104340.0,104330.0,0.27052358]
[1748880709692,0.04840174,104340.0,104330.0,0.26153761]
[1748880709894,0.06632313,104340.0,104330.0,0.26153761]
[1748880710112,0.04840174,104340.0,104330.0,0.26153761]
[1748880710953,0.04840174,104340.0,104330.0,0.27052361]
[1748880711160,0.03881778,104340.0,104330.0,0.26153761]
[1748880711425,0.03881778,104340.0,104330.0,0.27052364]
[1748880711631,0.05674269,104340.0,104330.0,0.26153761]
[1748880711844,0.03881778,104340.0,104330.0,0.26153761]
[1748880712257,0.05674215,104340.0,104330.0,0.27052364]
[1748880712464,0.03881778,104340.0,104330.0,0.26153761]
[1748880713203,0.01006656,104340.0,104330.0,0.26153761]
[1748880713426,0.02923392,104340.0,104330.0,0.26153761]
[1748880713911,0.00048325,104340.0,104330.0,0.35739191]
[1748880716519,0.01006647,104340.0,104330.0,0.75123191]
[1748880716748,0.00048325,104340.0,104330.0,0.75123191]
[1748880724878,0.01006665,104340.0,104330.0,0.75123191]
[1748880725098,0.00048325,104340.0,104330.0,0.75123191]
[1748880727713,0.00048325,104340.0,104330.0,0.65731191]
[1748880727923,0.01006647,104340.0,104330.0,0.65731191]
[1748880728343,0.05606122,104340.0,104330.0,0.24236888]
[1748880728564,0.23049901,104340.0,104330.0,0.22716888]
[1748880728776,0.23049901,104340.0,104330.0,0.23675348]
[1748880729001,0.23049901,104340.0,104330.0,0.0163]
[1748880729230,0.23049901,104340.0,104320.0,0.65473995]
[1748880729231,0.01916873,104330.0,104320.0,0.65473995]
[1748880729486,0.01916873,104330.0,104320.0,0.75059425]
[1748880729940,0.25179648,104340.0,104330.0,0.2108687]
[1748880730143,0.26138025,104340.0,104330.0,0.20128419]
[1748880730351,0.26138025,104340.0,104330.0,0.21086888]
[1748880730808,0.27096375,104340.0,104330.0,0.22045339]
[1748880731016,0.22091552,104340.0,104330.0,0.24523771]
[1748880731227,0.23049957,104340.0,104330.0,0.24523771]
[1748880731451,0.23049957,104340.0,104330.0,0.23565339]
[1748880731661,0.23049957,104340.0,104330.0,0.24523771]
[1748880732105,0.23049957,104340.0,104330.0,0.23565339]
[1748880732542,0.22091607,104340.0,104330.0,0.23565339]
[1748880732964,0.29999791,104340.0,104330.0,0.2452378]
[1748880733181,0.22091607,104340.0,104330.0,0.2452378]
[1748880733835,0.22091607,104340.0,104330.0,0.25482212]
[1748880735252,0.21600837,104350.0,104330.0,0.25482212]
[1748880735465,0.20126481,104340.0,104330.0,0.23565339]
[1748880735675,0.19168104,104340.0,104330.0,0.19169941]
[1748880735885,0.19168104,104340.0,104330.0,0.20128438]
[1748880736092,0.19168104,104340.0,104330.0,0.21086925]
[1748880736290,0.19168104,104340.0,104330.0,0.22045403]
[1748880736585,0.23246924,104340.0,104330.0,0.00958497]
[1748880736819,0.21086907,104330.0,104320.0,0.02578588]
[1748880737030,0.00958506,104320.0,104310.0,0.26102924]
[1748880737246,0.0191703,104320.0,104310.0,0.26102924]
[1748880738064,0.00958506,104320.0,104310.0,0.26102924]
[1748880738294,0.00958441,104330.0,104320.0,0.23005977]
[1748880738504,0.0287537,104330.0,104320.0,0.26155977]
[1748880738975,0.03833784,104330.0,104320.0,0.26155977]
[1748880739506,0.23962212,104330.0,104320.0,0.26155977]
[1748880740002,0.03833775,104330.0,104320.0,0.26155977]
[1748880740270,0.02875306,104330.0,104320.0,0.26255977]
[1748880740511,0.34413446,104340.0,104330.0,0.20128419]
[1748880741178,0.34413446,104340.0,104330.0,0.2108687]
[1748880741351,0.34413446,104340.0,104330.0,0.20128419]
[1748880741556,0.33455087,104340.0,104330.0,0.20128419]
[1748880741772,0.32496701,104340.0,104330.0,0.20128438]
[1748880742676,0.01916929,104330.0,104320.0,0.24238846]
[1748880742901,0.0191692,104330.0,104320.0,0.24238846]
[1748880743121,0.02875398,104330.0,104320.0,0.24238846]
[1748880743584,0.02875398,104330.0,104320.0,0.22708846]
[1748880743807,0.02875361,104330.0,104320.0,0.22808846]
[1748880744032,0.02875315,104330.0,104320.0,0.22808846]
[1748880744466,0.03833784,104330.0,104320.0,0.23008846]
[1748880744727,0.04792262,104330.0,104320.0,0.23008846]
[1748880746108,0.03833784,104330.0,104320.0,0.23008846]
[1748880746560,0.03833784,104330.0,104320.0,0.24568846]
[1748880748036,0.2798587,104330.0,104320.0,0.22651779]
[1748880748260,0.27027493,104330.0,104320.0,0.20430349]
[1748880748467,0.2798599,104330.0,104320.0,0.23897443]
[1748880748696,0.08816049,104330.0,104320.0,0.23897443]
[1748880748934,0.04792382,104330.0,104320.0,0.23897443]
[1748880749158,0.23962323,104330.0,104320.0,0.23897453]
[1748880749385,0.23003872,104330.0,104320.0,0.23897453]
[1748880750523,0.23003872,104330.0,104320.0,0.24855986]
[1748880751367,0.23003872,104330.0,104320.0,0.2293891]
[1748880751581,0.25948473,104330.0,104320.0,0.23897462]
[1748880752069,0.23003872,104330.0,104320.0,0.24855995]
[1748880752535,0.03833931,104330.0,104320.0,0.25814519]
[1748880752744,0.02875388,104330.0,104320.0,0.25814519]
[1748880752944,0.03833875,104330.0,104320.0,0.25814519]
[1748880753148,0.03833875,104330.0,104320.0,0.24855995]
[1748880753380,0.23962313,104330.0,104320.0,0.24855995]
[1748880753601,0.23003872,104330.0,104320.0,0.24855995]
[1748880754432,0.0191691,104330.0,104320.0,0.25814519]
[1748880754648,0.0733265,104340.0,104330.0,0.02875379]
[1748880754862,0.02875076,104340.0,104330.0,0.2362532]
[1748880755074,0.0191669,104340.0,104330.0,0.2516532]
[1748880755279,0.02875076,104340.0,104330.0,0.2516532]
[1748880755681,0.0191669,104340.0,104330.0,0.2516532]
[1748880755885,0.02875076,104340.0,104330.0,0.2516532]
[1748880756304,0.02875076,104340.0,104330.0,0.32808734]
[1748880756505,0.0191669,104340.0,104330.0,0.32808734]
[1748880757057,0.02875076,104340.0,104330.0,0.2516532]
[1748880757295,0.02875067,104340.0,104330.0,0.2516532]
[1748880757495,0.07068666,104350.0,104340.0,0.22043208]
[1748880757696,0.24308784,104350.0,104340.0,0.20447927]
[1748880758029,0.24308784,104350.0,104340.0,0.17879559]
[1748880758233,0.26710458,104350.0,104340.0,0.17879559]
[1748880758440,0.26710455,104350.0,104340.0,0.17879559]
[1748880758662,0.2671045,104350.0,104340.0,0.17879559]
[1748880758856,0.0095835,104340.0,104330.0,0.24176796]
[1748880759053,0.23001557,104340.0,104330.0,0.24176888]
[1748880759300,0.23833126,104340.0,104330.0,0.23595348]
[1748880759456,0.22043263,104340.0,104330.0,0.23595348]
[1748880759789,0.27493126,104340.0,104330.0,0.21086907]
[1748880760147,0.27493126,104340.0,104330.0,0.22045385]
[1748880760347,0.2653474,104340.0,104330.0,0.21086916]
[1748880760547,0.2832446,104340.0,104330.0,0.22045376]
[1748880760751,0.03706515,104340.0,104330.0,0.23962259]
[1748880761167,0.22874611,104340.0,104330.0,0.23003827]
[1748880761372,0.19168104,104340.0,104330.0,0.23003827]
[1748880761574,0.00958405,104340.0,104330.0,0.23962268]
[1748880761793,0.01916764,104340.0,104330.0,0.25472203]
[1748880762271,0.21084868,104340.0,104330.0,0.22596879]
[1748880762481,0.21084868,104340.0,104330.0,0.21086888]
[1748880762664,0.0191691,104330.0,104320.0,0.54238818]
[1748880762907,0.0191691,104330.0,104320.0,0.63824248]
[1748880763323,0.21084868,104340.0,104330.0,0.2108687]
[1748880763525,0.01916764,104340.0,104330.0,0.23003743]
[1748880763974,0.21084868,104340.0,104330.0,0.2259687]
[1748880764516,0.26084868,104340.0,104330.0,0.2259687]
[1748880764979,0.26084868,104340.0,104330.0,0.22596888]
[1748880765180,0.26084868,104340.0,104330.0,0.23555339]
[1748880765385,0.06916764,104340.0,104330.0,0.2451378]
[1748880765962,0.27043273,104340.0,104330.0,0.2451378]
[1748880766380,0.06916764,104340.0,104330.0,0.25472212]
[1748880767172,0.26084868,104340.0,104330.0,0.20679941]
[1748880767460,0.27043273,104340.0,104330.0,0.22045367]
[1748880767892,0.27043273,104340.0,104330.0,0.23003808]
[1748880767893,0.07875169,104340.0,104330.0,0.23003808]
[1748880768074,0.27043273,104340.0,104330.0,0.23003808]
[1748880768226,0.27043273,104340.0,104330.0,0.22045367]
[1748880768662,0.27043273,104340.0,104330.0,0.21086916]
[1748880769017,0.33131109,104340.0,104330.0,0.22045385]
[1748880769161,0.33131109,104340.0,104330.0,0.23003845]
[1748880769556,0.32172741,104340.0,104330.0,0.22045385]
[1748880769955,0.32172741,104340.0,104330.0,0.23003836]
[1748880770165,0.32172741,104340.0,104330.0,0.23003845]
[1748880770444,0.32172741,104340.0,104330.0,0.20128438]
[1748880770598,0.32172741,104340.0,104330.0,0.21086925]
[1748880770804,0.32172741,104340.0,104330.0,0.22045403]
[1748880771485,0.32704051,104340.0,104330.0,0.23003863]
[1748880772620,0.32704051,104340.0,104330.0,0.22045403]
[1748880774081,0.3270586,104340.0,104330.0,0.23003872]
[1748880774288,0.31747464,104340.0,104330.0,0.20128438]
[1748880774491,0.33537925,104340.0,104330.0,0.20128438]
[1748880774713,0.31747464,104340.0,104330.0,0.21086925]
[1748880774920,0.38305719,104340.0,104330.0,0.21086925]
[1748880775351,0.40096179,104340.0,104330.0,0.22045403]
[1748880775558,0.32579523,104340.0,104330.0,0.21086925]
[1748880775760,0.32579519,104340.0,104330.0,0.22045403]
[1748880775962,0.32579492,104340.0,104330.0,0.23645403]
[1748880776174,0.32579492,104340.0,104330.0,0.24603872]
[1748880776386,0.30789059,104340.0,104330.0,0.24603872]
[1748880776588,0.25958536,104340.0,104330.0,0.24603872]
[1748880776814,0.32580524,104340.0,104330.0,0.24603872]
[1748880777019,0.30790092,104340.0,104330.0,0.24603872]
[1748880777652,0.30790092,104340.0,104330.0,0.25562332]
[1748880777862,0.22045348,104330.0,104320.0,0.20771779]
[1748880778074,0.22045348,104330.0,104320.0,0.2420891]
[1748880778277,0.22045348,104330.0,104320.0,0.25167453]
[1748880778481,0.02875388,104330.0,104320.0,0.26125977]
[1748880778694,0.03833875,104330.0,104320.0,0.26125977]
[1748880778932,0.00958414,104330.0,104320.0,0.26125977]
[1748880779121,0.01916837,104330.0,104320.0,0.26125977]
[1748880779337,0.02875278,104330.0,104320.0,0.26325977]
[1748880779999,0.03833747,104330.0,104320.0,0.26425977]
[1748880780205,0.03833738,104330.0,104320.0,0.26425977]
[1748880780616,0.01916837,104330.0,104320.0,0.26425977]
[1748880780823,0.02875288,104330.0,104320.0,0.26425977]
[1748880781028,0.02875278,104330.0,104320.0,0.26425977]
[1748880781637,0.01916837,104330.0,104320.0,0.26425977]
[1748880781840,0.02875278,104330.0,104320.0,0.26425977]
[1748880782868,0.04792207,104330.0,104320.0,0.26425977]
[1748880783501,0.08384698,104340.0,104330.0,0.2204532]
[1748880783710,0.14373169,104340.0,104330.0,0.2524532]
[1748880783927,0.13539996,104340.0,104330.0,0.2524532]
[1748880784145,0.18206605,104340.0,104330.0,0.2524532]
[1748880784361,0.36416378,104340.0,104330.0,0.24286888]
[1748880784583,0.37374786,104340.0,104330.0,0.23645339]
[1748880784790,0.37374791,104340.0,104330.0,0.23645339]
[1748880785003,0.35583315,104340.0,104330.0,0.23645339]
[1748880785227,0.14498576,104340.0,104330.0,0.2460378]
[1748880785426,0.14498576,104340.0,104330.0,0.25562212]
[1748880785641,0.3366668,104340.0,104330.0,0.2460378]
[1748880785843,0.15456972,104340.0,104330.0,0.2460378]
[1748880786049,0.34625076,104340.0,104330.0,0.25562212]
[1748880786268,0.34625141,104340.0,104330.0,0.22686897]
[1748880786509,0.43242437,104340.0,104330.0,0.23645357]
[1748880786700,0.45033911,104340.0,104330.0,0.23645357]
[1748880786908,0.43242437,104340.0,104330.0,0.24603808]
[1748880787117,0.43242437,104340.0,104330.0,0.25562249]
[1748880787379,0.43242437,104340.0,104330.0,0.24603808]
[1748880787825,0.23115928,104340.0,104330.0,0.2556224]
[1748880788048,0.43242437,104340.0,104330.0,0.2556224]
[1748880788707,0.43242437,104340.0,104330.0,0.24603808]
[1748880789414,0.41322311,104340.0,104330.0,0.20128438]
[1748880789653,0.22045339,104330.0,104320.0,0.23320367]
[1748880789920,0.36263418,104330.0,104320.0,0.21710367]
[1748880790162,0.34471895,104330.0,104320.0,0.22668937]
[1748880790846,0.36263371,104330.0,104320.0,0.2366754]
[1748880791074,0.34471895,104330.0,104320.0,0.23727489]
[1748880791302,0.29623618,104330.0,104320.0,0.26266032]
[1748880791532,0.31415096,104330.0,104320.0,0.27224565]
[1748880791752,0.29623618,104330.0,104320.0,0.27224565]
[1748880792224,0.3141512,104330.0,104320.0,0.26266032]
[1748880792467,0.29623618,104330.0,104320.0,0.26466032]
[1748880792691,0.31415181,104330.0,104320.0,0.26466032]
[1748880792925,0.29623618,104330.0,104320.0,0.26466032]
[1748880793357,0.29623815,104330.0,104320.0,0.26466032]
[1748880794208,0.09495377,104330.0,104320.0,0.26466032]
[1748880794422,0.11287108,104330.0,104320.0,0.27424501]
[1748880794636,0.08536834,104330.0,104320.0,0.27424501]
[1748880795971,0.09495294,104330.0,104320.0,0.27424501]
[1748880796179,0.28665226,104330.0,104320.0,0.26465977]
[1748880796409,0.29623778,104330.0,104320.0,0.25507444]
[1748880796620,0.35835425,104330.0,104320.0,0.21051779]
[1748880796838,0.34043701,104330.0,104320.0,0.22968928]
[1748880797069,0.35835425,104330.0,104320.0,0.22968928]
[1748880797277,0.34876928,104330.0,104320.0,0.22010358]
[1748880797487,0.33085204,104330.0,104320.0,0.22010358]
[1748880797692,0.34876935,104330.0,104320.0,0.22010358]
[1748880797896,0.33085204,104330.0,104320.0,0.21051779]
[1748880798326,0.2578992,104330.0,104320.0,0.22010358]
[1748880798547,0.27581649,104330.0,104320.0,0.21051779]
[1748880798750,0.27581649,104330.0,104320.0,0.22968928]
[1748880798993,0.38329435,104330.0,104320.0,0.003]
[1748880799221,0.21090913,104310.0,104300.0,0.0313]
[1748880799439,0.21092954,104300.0,104290.0,0.0313]
[1748880799654,0.0191759,104290.0,104280.0,0.2613652]
[1748880799876,0.02876417,104290.0,104280.0,0.27035465]
[1748880800086,0.05511571,104290.0,104280.0,0.26136539]
[1748880800305,0.08261517,104290.0,104280.0,0.26136539]
[1748880800521,0.06470398,104290.0,104280.0,0.26136539]
[1748880800761,0.08261494,104290.0,104280.0,0.27083805]
[1748880800973,0.07429262,104290.0,104280.0,0.25225972]
[1748880801191,0.06470398,104290.0,104280.0,0.26184864]
[1748880801403,0.25647692,104290.0,104280.0,0.25225972]
[1748880801611,0.26606547,104290.0,104280.0,0.26124914]
[1748880801820,0.26606547,104290.0,104280.0,0.23608188]
[1748880801821,0.24689003,104290.0,104280.0,0.23608188]
[1748880802260,0.27051254,104290.0,104280.0,0.00348325]
[1748880802481,0.58274242,104290.0,104280.0,0.01247337]
[1748880802769,0.58274242,104290.0,104280.0,0.00548325]
[1748880802983,0.60736711,104290.0,104280.0,0.01447384]
[1748880803193,0.61078938,104290.0,104280.0,0.00348325]
[1748880803405,0.70664368,104290.0,104280.0,0.00348325]
[1748880803617,0.70964368,104290.0,104280.0,0.21385544]
[1748880803833,0.70964368,104290.0,104280.0,0.00348325]
[1748880804038,0.69364368,104290.0,104280.0,0.00048325]
[1748880804246,0.72026877,104290.0,104280.0,0.00048325]
[1748880804454,0.68605504,104290.0,104280.0,0.22044436]
[1748880804657,0.70523195,104290.0,104280.0,0.21145325]
[1748880804874,0.70523195,104290.0,104280.0,0.23003371]
[1748880805076,0.71194776,104290.0,104280.0,0.22104244]
[1748880805284,0.71194776,104290.0,104280.0,0.22104207]
[1748880805285,0.48856982,104290.0,104280.0,0.22104207]
[1748880805506,0.03304696,104290.0,104280.0,0.25622236]
[1748880805715,0.05095604,104290.0,104280.0,0.26313108]
[1748880805933,0.04263487,104290.0,104280.0,0.27212163]
[1748880806135,0.07013245,104290.0,104280.0,0.26313108]